Cogmind - Beta 17.1 @@@ ROGUE MODE // 2026.08.24 @ 06:10:11 Player: kite Result: Self-destructed Performance ------------- Evolutions (1) 500 Regions Visited (4) 800 Robots Destroyed (93) 465 Value Destroyed (1883) 1883 Prototype IDs (4) 80 Alien Tech Used (0) 0 Bonus (296) 296 TOTAL SCORE: 4024 Bonus ------- High Alert Combat Kills 2 Met Imprinter 300 Was Imprinted 300 Friendly Fire -306 Cogmind --------- Core Integrity 98/400 Matter 300/300 Energy 150/150 System Corruption 0% Temperature Cool (0) Movement Rolling (165) Ox5 Location -7/Zion Parts ------- > --- POWER (1) -------- Light Angular Momentum Engine > --- PROPULSION (3) --- Light Treads Light Treads Armored Wheel > --- UTILITY (3) ------ High-capacity Storage Unit Hardened Medium Armor Plating Shield Generator > --- WEAPON (2) ------- Battle Rifle Heavy Battle Rifle > --- INVENTORY (20) --- Improved Deuterium Engine Aluminum Leg Carbon-fiber Leg Large Storage Unit High-capacity Matter Pod (197) 0b10 Decoder Chip [Looter] 0b10 Decoder Chip [Scout] Medium Armor Plating Makeshift Hacking Suite Hacking Drone Bay (1/1) Grenade Launcher RU-N14's Throwing Claymores (5) RU-N14's Throwing Claymores (5) RU-N14's Throwing Claymores (4) RU-N14's Throwing Claymores (2) Maul Heavy Hammer Heavy Hammer Makeshift Sword Peak State ------------ > --- POWER ------------ Light Angular Momentum Engine > --- PROPULSION ------- Light Treads Aluminum Leg Carbon-fiber Leg > --- UTILITY ---------- Large Storage Unit Advanced Visual Processing Unit Hacking Drone Bay > --- WEAPON ----------- Heavy Hammer Makeshift Sword > --- INVENTORY -------- Improved Deuterium Engine Light Treads Armored Wheel Large Storage Unit 0b10 Decoder Chip [Looter] 0b10 Decoder Chip [Scout] Medium Armor Plating Hardened Medium Armor Plating Makeshift Hacking Suite RU-N14's Throwing Claymores RU-N14's Throwing Claymores RU-N14's Throwing Claymores RU-N14's Throwing Claymores Maul Heavy Hammer [Rating: 34] Favorites ----------- Power Light Angular Momentum Engine Engine Light Angular Momentum Engine Propulsion Light Treads Treads Light Treads Leg Aluminum Leg Wheel Armored Wheel Flight Unit Flight Unit Utility Large Storage Unit Device Heat Sink Storage Large Storage Unit Processor Advanced Visual Processing Unit Protection Hardened Medium Armor Plating Weapon Spread Laser Energy Gun Spread Laser Energy Cannon Advanced Beam Cannon Ballistic Gun Light Assault Rifle Ballistic Cannon Light Cannon Launcher Grenade Launcher Special Weapon RU-N14's Throwing Claymores Impact Weapon Heavy Hammer Slashing Weapon Makeshift Sword Build | -11 -10 -9 -9 -7 ------- Run | Yrd Mat Mat Min Zio Slots Evolved 2 | . . 2 . . Power . | . . . . . Propulsion 1 | . . 1 . . Utility 1 | . . 1 . . Weapon . | . . . . . Parts Attached 70 | 6 9 37 6 12 Power 6 | 1 2 2 1 . Engine 6 | 1 2 2 1 . Core . | . . . . . Reactor . | . . . . . Propulsion 18 | 2 5 8 3 . Treads 7 | 2 2 1 2 . Leg 6 | . 2 3 1 . Wheel 4 | . . 4 . . Hover . | . . . . . Flight 1 | . 1 . . . Utility 18 | 1 1 10 1 5 Device 8 | . . 6 1 1 Storage 4 | 1 1 1 . 1 Processor 4 | . . 2 . 2 Hackware . | . . . . . Protection 2 | . . 1 . 1 Artifact . | . . . . . Weapon 28 | 2 1 17 1 7 Energy Gun 10 | . . 9 1 . Energy Cannon 4 | . . 4 . . Ballistic Gun 4 | 2 . . . 2 Ballistic Cannon 3 | . 1 . . 2 Launcher 2 | . . 2 . . Special Weapon 1 | . . . . 1 Impact Weapon 3 | . . 2 . 1 Slashing Weapon 1 | . . . . 1 Piercing Weapon . | . . . . . Special Melee Weapon . | . . . . . Unidentified Prototypes 4 | . . 2 . 2 Corrupted Parts 2 | . . 2 . . System Corruption 13 | . . 13 . . Parts Lost 17 | . 4 8 5 . Power 1 | . 1 . . . Propulsion 8 | . 2 3 3 . Utility 3 | . . 2 1 . Weapon 5 | . 1 3 1 . Highest Loss Streak 5 | . 4 3 5 . To Critical Strikes . | . . . . . Average Backups 14 | 1 6 13 14 16 Power . | . . . . 1 Propulsion 2 | . 3 4 2 2 Utility 4 | . 1 3 5 6 Weapon 5 | . 1 4 5 7 Tool/Special . | . . . . . Unused Backups 25 | . 1 6 1 17 Power 2 | . . . . 2 Propulsion 4 | . 1 2 1 . Utility 10 | . . 1 . 9 Weapon 8 | . . 2 . 6 Tool/Special 1 | . . 1 . . Average Slot Usage (%) 97 | . 91 97 98 99 Engine 11 | . 13 11 11 11 Treads 10 | . 12 5 6 13 Leg 12 | . 14 13 20 8 Wheel 9 | . . 13 5 10 Device 7 | . . 13 11 6 Storage 11 | . 14 11 11 11 Processor 3 | . . 3 5 4 Protection 7 | . 7 3 4 10 Energy Gun 4 | . . 9 20 . Energy Cannon 2 | . . 9 . . Ballistic Gun 6 | . 18 . . 6 Ballistic Cannon 3 | . 8 1 . 4 Impact Weapon 3 | . . . . 7 Slashing Weapon 1 | . . . . 3 Peak Build Rating 34 | 6 8 20 23 34 Average Rating 20 | 4 6 15 16 28 On Entrance 10 | . 6 7 15 23 Avg Prop Armor Cover (%) 10 | . . . 11 9 Naked Turns . | . . . . . Heaviest Build 73 | 13 23 44 43 73 Greatest Support 60 | 40 40 60 30 25 Greatest Overweight (x) 6 | . 4 3 3 6 Average Overweight (x) 2 | . . . 1 3 Largest Inventory Capacity 20 | 8 10 15 15 20 Average Capacity 15 | 6 9 14 15 17 Most Carried 20 | 4 10 15 15 20 Average Carried 14 | 1 6 13 14 16 Final Capacity 20 | 8 10 15 15 20 Final Carried 19 | 4 9 15 15 19 Class Distribution -------------------- 60% | Mutant 24% | Derelict-Mutant 14% | Scavenger-Mutant Dominant Class ---------------- Mutant | -10/Materials Mutant | -9/Materials Mutant | -9/Mines Derelict-Mutant | -7/Zion Resources | -11 -10 -9 -9 -7 ----------- Run | Yrd Mat Mat Min Zio Matter Collected 1969 | 203 537 827 177 225 Remotely . | . . . . . Salvage Created 2675 | . 594 1658 423 . Parts 205 | . 41 132 32 . Haulers Intercepted 8 | . 2 6 . . Recyclers Shooed 4 | . 2 . 2 . Parts Field Recycled . | . . . . . Retrieved Matter . | . . . . . Parts Self-Destructed . | . . . . . Prevented . | . . . . . Parts Restored . | . . . . . Kills | -11 -10 -9 -9 -7 ------- Run | Yrd Mat Mat Min Zio Combat Hostiles Destroyed 59 | . 18 33 8 . Guns 28 | . 13 10 5 . Cannons 24 | . 5 19 . . AOE 7 | . . 4 3 . Classes Destroyed 12 | . 5 5 2 . Worker 12 | . 2 4 6 . Builder 8 | . . 4 4 . Tunneler 2 | . . 1 1 . Hauler 8 | . 2 6 . . Recycler 2 | . . 1 1 . Operator 2 | . . 2 . . Watcher 2 | . 1 1 . . Swarmer 15 | . 8 7 . . Grunt 32 | . 10 20 2 . Sentry 7 | . . 6 1 . Demolisher 1 | . . . 1 . Assembled 4 | . . . 4 . Thug 2 | . . . 2 . Best Kill Streak 5 | . 4 5 4 . Combat Bots Only 4 | . 4 4 2 . Max Kills in Single Turn 2 | . 1 2 1 . Gunslinging . | . . . . . Exploded 2 | . . 2 1 . Melee . | . . . . . Uniques/NPCs Destroyed . | . . . . . Combat | -11 -10 -9 -9 -7 -------- Run | Yrd Mat Mat Min Zio Hostile Shots Fired 250 | . 112 109 29 . Missed 69 | . 34 30 5 . Hits 181 | . 78 79 24 . Projectile 181 | . 78 79 24 . AOE 9 | . . . 9 . Critical Strikes 3 | . 2 1 . . Damage Taken 2559 | . 878 1125 556 . Core 466 | . 164 211 91 . Absorbed by Shields . | . . . . . Core Remaining (%) 67 | 100 34 . . . Volleys Fired 258 | . 92 119 47 . Largest 2 | . 2 2 2 . Hottest 136 | . 50 136 130 . Shots Fired 487 | . 171 231 85 . Gun 311 | . 129 101 81 . Cannon 169 | . 42 127 . . Launcher 7 | . . 3 4 . Special . | . . . . . Kinetic 196 | . 171 25 . . Thermal 284 | . . 203 81 . Explosive 7 | . . 3 4 . Electromagnetic . | . . . . . Robot Hit Streak 11 | . 11 10 7 . Robot Miss Streak 14 | . 7 14 13 . Penetration Max . | . . . . . Secondary Targets 2 | . . 1 1 . Max Gunslinging Chain 1 | . . 1 1 . Shots Hit Robots 290 | . 93 134 63 . Core Hits 205 | . 41 77 87 . Critical Kills . | . . . . . Critical Parts Destroyed 1 | . 1 . . . Critical Strikes 7 | . 4 3 . . Burn 3 | . . 3 . . Destroy 1 | . 1 . . . Blast 3 | . 3 . . . Melee Attacks 2 | . . 1 . 1 Impact 2 | . . 1 . 1 Slashing . | . . . . . Piercing . | . . . . . Sneak Attacks . | . . . . . Combat Hostiles . | . . . . . Follow-up Attacks . | . . . . . Damage Inflicted 4602 | . 1170 2460 972 . Guns 2440 | . 687 916 837 . Cannons 1751 | . 483 1268 . . Explosions 400 | . . 270 130 . Melee . | . . . . . Ramming 11 | . . 6 5 . Kinetic 1473 | . 1170 303 . . Thermal 2718 | . . 1881 837 . Explosive 400 | . . 270 130 . Electromagnetic . | . . . . . Impact . | . . . . . Slashing . | . . . . . Piercing . | . . . . . Highest Corruption 14 | . 1 14 14 14 Average Corruption 9 | . 1 13 14 14 Corruption Purged . | . . . . . Corruption Blocked . | . . . . . Effects 107 | . 7 48 49 3 Message Errors 26 | . 2 15 8 1 Matter Fused 17 | . . 11 5 1 Heat Flow Errors 13 | . 2 5 6 . Energy Discharges 16 | . . 5 11 . Parts Rejected 1 | . 1 . . . Data Loss (minor) 12 | . . 3 8 1 Data Loss (major) 3 | . . 3 . . Misfires 5 | . . 3 2 . Alerts 1 | . . 1 . . Misdirections 2 | . . . 2 . Weapon Failures 11 | . 2 2 7 . Overload Shots . | . . . . . Overflow Damage 83 | . 8 73 2 . Projectiles 24 | . 2 22 . . Explosions 59 | . 6 51 2 . Melee . | . . . . . Knockbacks 10 | . 9 1 . . Impact . | . . . . . Kinetic 9 | . 8 1 . . Secondary 1 | . 1 . . . Self-Inflicted Damage 144 | . 88 43 13 . Shots 5 | . 3 1 1 . Rammed 1 | . . 1 . . Targets Rammed 2 | . . 1 1 . Kicked 1 | . . . 1 . Crushed . | . . . . . Highest Temperature 351 | . 273 276 351 . Average Temperature 55 | . 35 55 71 . Received Heat Transfer 800 | . 288 426 86 . Effects 1 | . . 1 . . Energy Bleed 1 | . . 1 . . Siege Activations . | . . . . . Martial Activations . | . . . . . Shielding Activations . | . . . . . Robots Disrupted . | . . . . . Combat Hostiles . | . . . . . Robots Corrupted . | . . . . . Combat Hostiles . | . . . . . Parts Fried . | . . . . . Impact Corruptions . | . . . . . Robots Melted . | . . . . . Combat Hostiles . | . . . . . Parts Melted 10 | . . 9 1 . Heat Transferred 5088 | . . 4038 1050 . Parts Sabotaged . | . . . . . Parts Stolen . | . . . . . Parts Stripped . | . . . . . Power Chain Reactions 1 | . 1 . . . Alert | -11 -10 -9 -9 -7 ------- Run | Yrd Mat Mat Min Zio Maximum Alert Level 2 | . . 2 . . Low Security (%) 71 | 100 100 42 100 . Level 1 27 | . . 55 . . Level 2 . | . . 1 . . Level 3 . | . . . . . Level 4 . | . . . . . Level 5 . | . . . . . High Security . | . . . . . Max Security . | . . . . . Peak Influence 411 | . 151 411 159 . Initial 159 | . . 40 159 . Average 135 | . 62 223 36 . Influence Increases 1812 | . 570 1063 179 . Destroy 0b10 Robot/C 1100 | . 360 660 80 . Destroy 0b10 Robot/NC 180 | . 25 95 60 . Destroy Leader 280 | . 86 174 20 . Allied During Kill 4 | . . . 4 . Successful Hack 40 | . 19 21 . . Disable Machine 120 | . 45 75 . . Destroy Structure 28 | . 5 8 15 . Lose Combat Pursuer 60 | . 30 30 . . Influence Decreases 1812 | . 472 752 588 . Entered New Map 308 | . . 58 250 . Time Decay 1360 | . 432 624 304 . Lost Part 140 | . 40 70 30 . Lost Ally 4 | . . . 4 . Squads Dispatched 12 | . 5 7 . . Investigation 6 | . 3 3 . . Extermination . | . . . . . Reinforcement 6 | . 2 4 . . Assault . | . . . . . Garrison . | . . . . . Intercept . | . . . . . Searches Triggered . | . . . . . Construction Impeded 3 | . . 3 . . Haulers Reinforced . | . . . . . Active Scanning Responses . | . . . . . Cargo Convoy Interrupts . | . . . . . Stealth | -11 -10 -9 -9 -7 --------- Run | Yrd Mat Mat Min Zio Distress Signals 9 | . 2 7 . . Communications Jammed . | . . . . . Distress Signals . | . . . . . Times Spotted 99 | . 25 59 15 . Peak Tracking Total 7 | . 6 7 3 . Tactical Retreats 5 | . 2 1 2 . Traps | -11 -10 -9 -9 -7 ------- Run | Yrd Mat Mat Min Zio Traps Triggered 4 | . 1 3 . . Indirectly . | . . . . . Trap Hack Attempts . | . . . . . Triggered . | . . . . . Disarmed . | . . . . . Reprogrammed . | . . . . . Reused . | . . . . . Traps Extracted . | . . . . . Installed . | . . . . . Triggered . | . . . . . Machines | -11 -10 -9 -9 -7 ---------- Run | Yrd Mat Mat Min Zio Machines Disabled 8 | . 3 5 . . Max in Single Turn 3 | . 3 1 . . Machines Repaired . | . . . . . Machines Dismantled . | . . . . . Machines Sabotaged . | . . . . . Overloaded Fab Kills . | . . . . . Hacking | -11 -10 -9 -9 -7 --------- Run | Yrd Mat Mat Min Zio Machines Accessed 14 | . 6 7 . 1 Terminals 11 | . 4 7 . . Fabricators . | . . . . . Repair Stations 1 | . 1 . . . Recycling Units 1 | . 1 . . . Scanalyzers . | . . . . . Garrison Access . | . . . . . Total Hacks 40 | . 20 16 . 4 Successful 12 | . 4 4 . 4 Failed 27 | . 15 12 . . Catastrophic 8 | . 3 5 . . Database Lockouts 1 | . 1 . . . Manual 35 | . 17 16 . 2 Terminals 30 | . 14 16 . . Fabricators . | . . . . . Repair Stations 2 | . 2 . . . Recycling Units 4 | . 4 . . . Scanalyzers . | . . . . . Garrison Access . | . . . . . Terminal Hacks 11 | . 3 4 . 4 Part Schematic 7 | . 1 2 . 4 Hauler Manifests 2 | . 1 1 . . Registered Components 1 | . . 1 . . Zone Layout 1 | . 1 . . . Fabricator Hacks . | . . . . . Repair Station Hacks 1 | . 1 . . . Refit 1 | . 1 . . . Recycling Unit Hacks . | . . . . . Scanalyzer . | . . . . . Garrison Access Hacks . | . . . . . Unauthorized Hacks . | . . . . . Terminals . | . . . . . Fabricators . | . . . . . Repair Stations . | . . . . . Recycling Units . | . . . . . Scanalyzers . | . . . . . Garrison Access . | . . . . . Data Cores Recovered 1 | . . 1 . . Used 1 | . . 1 . . Hacking Detections 13 | . 6 7 . . Full Trace Events 6 | . 3 3 . . Feedback Events 1 | . 1 . . . Corruption 1 | . 1 . . . Feedback Blocked . | . . . . . Robot Schematics Acquired 4 | . . . . 4 Robots Built . | . . . . . Authchips . | . . . . . Time . | . . . . . Total Robot Build Rating . | . . . . . Part Schematics Acquired 22 | . 1 2 . 19 Parts Built . | . . . . . Authchips . | . . . . . Time . | . . . . . Total Part Build Rating . | . . . . . Part Studies Acquired . | . . . . . Parts Repaired . | . . . . . Time . | . . . . . Parts Recycled . | . . . . . Recycled Matter . | . . . . . Retrieved Matter . | . . . . . Retrieved Components . | . . . . . Parts Scanalyzed . | . . . . . Part Schematics Acquired . | . . . . . Parts Damaged . | . . . . . Bothacking | -11 -10 -9 -9 -7 ------------ Run | Yrd Mat Mat Min Zio Used RIF Installer . | . . . . . Robots Hacked . | . . . . . Non-combat . | . . . . . Combat . | . . . . . Robot Hacks Applied . | . . . . . Relay Couplers Released . | . . . . . Fabnet Peak Effective % . | . . . . . Robots Rewired . | . . . . . Allies Hacked . | . . . . . Hacks Repelled . | . . . . . Allies | -11 -10 -9 -9 -7 -------- Run | Yrd Mat Mat Min Zio Total Allies 9 | . . . 3 6 Largest Group 6 | . . . 3 6 Highest-Rated Group 349 | . . . 40 349 Highest-Rated Ally 96 | . . . 16 96 Total Orders . | . . . . . Ally Attacks 19 | . . . 19 . Total Damage 146 | . . . 146 . Kills 1 | . . . 1 . Allies Corrupted . | . . . . . Allies Melted . | . . . . . Intel | -11 -10 -9 -9 -7 ------- Run | Yrd Mat Mat Min Zio Active Infowar (turns) 1723 | . . . . 1723 Optics 1722 | . . . . 1722 Decoding 1 | . . . . 1 Robot Analysis Total . | . . . . . Derelict Logs Recovered 2 | . . . 1 1 Drone Launches . | . . . . . Drone Recoveries . | . . . . . Exploration | -11 -10 -9 -9 -7 ------------- Run | Yrd Mat Mat Min Zio Turns Passed 9091 | 91 1356 2324 941 4379 Spaces Moved 4884 | 52 624 1291 450 2467 Core 15 | 4 11 . . . Treads 497 | 48 283 166 . . Legs 2003 | . 330 475 302 896 Wheels 2369 | . . 650 148 1571 Hover . | . . . . . Flight . | . . . . . Fastest Speed 50 | 50 120 90 120 135 Average Speed 160 | 151 140 142 169 173 Slowest Speed 250 | 160 250 240 190 190 Overloaded Moves . | . . . . . Propulsion Burnouts . | . . . . . Robots Hopped . | . . . . . Potential Cave-ins . | . . . . . Cave-ins Triggered . | . . . . . Exploration Rate (%) 65 | 3 89 83 60 91 Regions Visited 4 Branch Regions 2 Pre-discovered Areas 3 | . . . 1 2 Known Exits Taken . | . . . . . Unknown Exits Taken 4 | 1 1 1 1 . Scrap Searched 6 | . . . 1 5 Spaces Dug . | . . . . . Terrain Destroyed 27 | . 2 3 22 . Melee . | . . . . . Projectile . | . . . . . AOE 27 | . 2 3 22 . Terrain Rammed . | . . . . . Walls Destroyed . | . . . . . Machines Disabled . | . . . . . Actions | -11 -10 -9 -9 -7 --------- Run | Yrd Mat Mat Min Zio Total 5670 | 61 950 1546 538 2575 Wait 291 | . 211 16 21 43 Move 4880 | 51 623 1290 449 2467 Hop . | . . . . . Pick Up 65 | 4 10 27 6 18 Fast Attach 44 | 6 3 26 1 8 Attach 18 | . 3 5 6 4 Detach 4 | . . 2 . 2 Swap 32 | . 4 17 3 8 Drop 74 | . 4 42 4 24 Fire 258 | . 92 119 47 . Melee 2 | . . 1 . 1 Ram 1 | . . 1 . . Kick 1 | . . . 1 . Crush . | . . . . . Escape Stasis . | . . . . . Rewire . | . . . . . Trap . | . . . . . Miscellaneous . | . . . . . Route ------- -11/Scrapyard -10/Materials (discovered 4 exits: *Mat x3 / [*Min]) -9/Materials (discovered 4 exits: *Mat x2 / [*Min x2]) -9/Mines (discovered 3 exits: *Mat x2 / *Zio) -7/Zion (discovered 1 exit: [*Pro]) History --------- Turn | Location | Event 5 | -11/Scrapyard | Discovered new exit (range 15) 92 | -11/Scrapyard | Entered Materials 305 | -10/Materials | Build established: Mutant 522 | -10/Materials | Lost 4 parts (1p2n1w) 526 | -10/Materials | Discovered new exit (range 16) 682 | -10/Materials | Discovered new exit (range 15) 792 | -10/Materials | Derelicts attacked the area 816 | -10/Materials | Discovered new exit (range 13) 1132 | -10/Materials | Core integrity fell below 50% 1178 | -10/Materials | Discovered new exit (range 12) 1376 | -10/Materials | Central database locked down 1448 | -10/Materials | Entered another Materials area 1448 | -9/Materials | Evolved 2 slots: Propulsion x1, Utility x1 1770 | -9/Materials | Discovered new exit (range 11) 1856 | -9/Materials | Lost 3 parts (2u1w) 2309 | -9/Materials | Discovered new exit (range 9) 2588 | -9/Materials | System corruption reached 10% 2682 | -9/Materials | Discovered new exit (range 12) 2682 | -9/Materials | Discovered new exit (range 4) 3079 | -9/Materials | Build established: Scavenger-Mutant 3560 | -9/Materials | Identified exit to Materials 3722 | -9/Materials | Core integrity fell below 50% 3772 | -9/Materials | Entered Mines 3774 | -9/Mines | Assisted by bots powering up and referring to "LRC-V3" 3861 | -9/Mines | Discovered exit to Materials (range 12) 4024 | -9/Mines | A weapon hastily lodged in a ceiling crevice suddenly fell to the ground 4077 | -9/Mines | Joined a pair of Derelicts in attacking an 0b10 outpost 4161 | -9/Mines | Assembled infested the area 4253 | -9/Mines | Lost 5 parts (3n1u1w) 4262 | -9/Mines | Lost 3 allies 4348 | -9/Mines | A Derelict revealed a hidden shortcut to a safe place 4362 | -9/Mines | Discovered exit to Materials (range 10) 4536 | -9/Mines | Build established: Mutant 4713 | -9/Mines | Entered Zion 4753 | -7/Zion | Given A8's code to call for help 4766 | -7/Zion | System corruption cleaned by Quarantine Array 5433 | -7/Zion | Learned location of Warlord (-4) 5729 | -7/Zion | Enhanced Grunt warped into view, answering call for help 5737 | -7/Zion | Enhanced Grunt warped into view, answering call for help 5806 | -7/Zion | Learned Factory terminal intel 5876 | -7/Zion | Received a hallucinogenic algorithm 5876 | -7/Zion | Ran a hallucination algorithm 6284 | -7/Zion | Found Prototype Special Weapon 6284 | -7/Zion | Identified RU-N14's Throwing Claymores 6295 | -7/Zion | Found RU-N14's Throwing Claymores 6298 | -7/Zion | Found RU-N14's Throwing Claymores 6302 | -7/Zion | Found RU-N14's Throwing Claymores 6344 | -7/Zion | Discovered new exit (range 15) 6417 | -7/Zion | Given the Hacking Drone Bay 6419 | -7/Zion | Found Prototype Device 6420 | -7/Zion | Identified Hacking Drone Bay 7205 | -7/Zion | Build established: Derelict-Mutant 8069 | -7/Zion | Met Imprinter 8098 | -7/Zion | Imprinted 8100 | -7/Zion | Declared Zion's savior 9092 | -7/Zion | Self-destructed Last Messages --------------- 08108_ PQ-ZEY(M): "We'll do our best to protect you while preparations are underway." 08113_ PQ-ZEY(M): "There's no telling where there might be Unaware spies, waiting in hiding for this very moment!" 08118_ Imprinter is transmitting encrypted data deep into the caves. 08185_ NE-NTB(z) pokes at the Twisted Machinery. 08516_ Connecting with WAR.Sys... 08569_ Acquired 2 matter. 08805_ T6-8YY(z) toys with the Twisted Machinery. 08865_ GA-QNF(z) plays with the Twisted Machinery. 08939_ 1Z-4GH(z) scatters some of the Twisted Machinery. 08943_ P7-7J1(z) plays with the Twisted Machinery. 09006_ T6-8YY(z) uncovers a bit of Twisted Machinery. Map ----- +----------------------------------------------------+ | ???#""" "" " """""#"" "" | | ??#"#""" "" " """"" """ | | ??#?##"" """ " "" """##"""""" | | ?????#"" """ """"" """""#"""## | | ?????#""""" """" """"""""""######"##? | | ?????##""#""""#" """"#"""##????###?? | | ??????###"##"""" ""####"#?????????? | | ????????##?##"#"" ""#?????????????? | | ????????????####""" "##?????????????? | | ???????????????#""" "" """#?????????????? | | ??????????????##"#" """ """"#?????????????? | | ??????????????#"""" " " "#"##?????????????? | | ??????????????##""" " """"""##??????????????? | | ??????????#####"" ""##"##???????????????? | | ?????????##"##"" #"#?##????????????????? | | ?????????#"#"""" ""#???????????????????? | | ??#####?##"""""" ""##??????????????????? | | ??# [ ###""" "" ""##?????????????????? | | ??# " "" ""#?????????????????? | | ??#| !! "" """"#?????????????????? | | ??#[ " " "" """"#?????????????????? | | ###| ### """ """##?????????????????? | | "######?### """ ""#"##????????????????? | | ""#"####### g """""#????????????????? | | """""#""""z g ""##????????????????? | | """""""" @ """"#?????####???????? | | M """##?????#X #####???? | | M """####???# ##"##### | | """""""" M M """""##### #""""""" | | """"#"#"" "" """#""# """# | | """#"""" """z """""""" """ | | ""###""" "" | | ""##""" """" """ | | ""####" """"""""" " | | "##?#"" """"""#" """ ""#""""#""" ## | | "##?##"" """###"" """ z"""""""""" " | | ""#??##"" """"#"" """ z " | | ""#???#""" """"""" "#" "" | | ###???#"" """"" """ "" """"" " | | #?????#"" """"" """" "#"""" | | #?????##" """ """""""" """"""" | | #????##"" """""#"" "" "" | | #????#""" """####""""" " | | ###????##"""""" """"""#""""" """"" | | ????????#""#"" ""#"##"""""#""""""""" | | ""??????####"" """####"##"#""#"""""" ## | | #"?????????#""" """#??##??#"######""" # | | #"?????????###"" """ ""#???????#?????###"" "" | | #"?????????#"""""""" """#???????????????#""" "" | | #"""???????####""#"""""#"#???????????????###" "" | +----------------------------------------------------+ Best States ------------- Heat Dissipation 48 Energy Generation 18 Energy Capacity 280 Matter Stores 300 Matter Capacity 300 Sight Range 20 Terrain Scan Density 10 Armor Coverage 225 Evasion (%) 55 Targeting Accuracy 5 Recoil Reduction 3 Item Schematics ----------------- Hcp. Storage Unit | -10/Materials | Hacked Huge Storage Unit | -9/Materials | Hacked Lrg. Storage Unit | -9/Materials | Hacked Lgt. Fission Core | -7/Zion | Archive Matter Compressor | -7/Zion | Archive Gauss Rifle | -7/Zion | Archive Flak Gun | -7/Zion | Archive Imp. Shield Generator | -7/Zion | Archive Imp. Focal Shield | -7/Zion | Archive Imp. Medium Treads | -7/Zion | Archive Weapon Cycler | -7/Zion | Archive Flexi-carbon Leg | -7/Zion | Archive Gatling Laser | -7/Zion | Archive Arm. Leg | -7/Zion | Archive Hvy. Laser | -7/Zion | Archive Imp. Target Analyzer | -7/Zion | Archive Imp. Kinecellerator | -7/Zion | Archive Imp. Field Recycling Unit | -7/Zion | Archive Riot Gun | -7/Zion | Free Battle Cannon | -7/Zion | Free Slug Cannon | -7/Zion | Free Ripper | -7/Zion | Free Robot Schematics ------------------ Y-45 Defender | -7/Zion | Archive R-06 Scavenger | -7/Zion | Archive A-02 Transporter | -7/Zion | Archive H-88 Terminator | -7/Zion | Archive Fabricated ------------ Nothing Repaired ---------- Nothing Studied --------- None Alien Tech Used ----------------- None Achievements -------------- None Challenges ------------ None Game ------ Seed WaveMultinovaFilter Manual? 0 Play Time 00:36:20 Cumulative 567.8 hours Start 2026.08.24 @ 05:09:12 End 2026.08.24 @ 06:10:11 Sessions 1 Manual Loads 0 Difficulty Rogue Special Mode None Game No. 484 Rogue 484 Adventurer 0 Explorer 0 Win Type - Total 16 Types 9/0/3/1/0/0/0/1/0/2 Lore% 68 Gallery% 71 Achievement% 68 Wizard Run 0 Options --------- Layout 1 ASCII 0 Keyboard 0 Movement Mouse Keybinds 0 Fullscreen 2 Font 24/Cog Map View 50x35 Zoom Use 11% Tactical HUD 1 Map Filters NONE Filters NONE Steam 1 RUN: 3088b0fa-0c80-42aa-a3aa-8cac09c4d478